bitfinex-derivatives/quotes_BNBF0:USTF0_20260221
["timestamp","ask_amount","ask_price","bid_price","bid_amount"]
[1771640093348,1.1910577,628.66,628.28,0.31850149]
[1771640093548,1.1910577,628.66,628.29,0.31850149]
[1771640093745,1.1910577,628.66,628.3,0.31850149]
[1771640093949,1.1910577,628.66,628.31,0.31850149]
[1771640094146,1.1910577,628.66,628.32,0.31850149]
[1771640094350,1.1910577,628.66,628.33,0.31850149]
[1771640094548,1.1910577,628.66,628.34,0.31850149]
[1771640094751,1.1910577,628.66,628.35,0.31850149]
[1771640094951,1.1910577,628.63,628.36,0.31850149]
[1771640095152,1.1910577,628.63,628.37,0.31850149]
[1771640095353,1.1910577,628.63,628.38,0.31850149]
[1771640095654,1.1910577,628.63,628.39,0.31850149]
[1771640095953,1.1910577,628.63,628.4,0.31850149]
[1771640096154,1.1910577,628.63,628.41,0.31850149]
[1771640096355,1.1910577,628.62,628.42,0.31850149]
[1771640096554,1.1910577,628.62,628.43,0.31850149]
[1771640096753,1.1910577,628.62,628.44,0.31850149]
[1771640096951,1.1910577,628.62,628.45,0.31850149]
[1771640097154,1.1910577,628.62,628.46,0.31850149]
[1771640097454,1.1910577,628.62,628.0,1.18134534]
[1771640097455,1.1910577,628.62,628.47,0.31850149]
[1771640097655,1.1910577,628.62,628.48,0.31850149]
[1771640097853,1.1910577,628.62,628.49,0.31850149]
[1771640098051,1.1910577,628.62,628.5,0.31850149]
[1771640098250,1.1910577,628.61,628.51,0.31850149]
[1771640098450,1.1910577,628.61,628.52,0.31850149]
[1771640098753,1.1910577,628.61,628.53,0.31850149]
[1771640098951,1.1910577,628.61,628.54,0.31850149]
[1771640099151,1.1910577,628.6,628.55,0.31850149]
[1771640099354,1.59104758,628.64,628.35,1.262]
[1771640099550,1.19348462,628.53,628.36,0.31853372]
[1771640099850,1.19348462,628.53,628.37,0.31853372]
[1771640100050,1.19348462,628.52,628.38,0.31853372]
[1771640100249,1.19348462,628.5,628.39,0.31853372]
[1771640100550,1.19348462,628.51,628.4,0.31853372]
[1771640100752,1.19348462,628.53,628.41,0.31853372]
[1771640100955,1.19348462,628.53,628.42,0.31853372]
[1771640101254,1.19348462,628.53,628.43,0.31853372]
[1771640101451,1.19348462,628.53,628.44,0.31853372]
[1771640101755,1.19348462,628.53,628.45,0.31853372]
[1771640101954,1.19348462,628.53,628.46,0.31853372]
[1771640102155,1.19348462,628.53,628.47,0.31853372]
[1771640102354,1.19348462,628.53,628.48,0.31853372]
[1771640102655,1.19348462,628.54,628.49,0.31853372]
[1771640102851,1.19348462,628.54,628.5,0.31853372]
[1771640103056,1.19348462,628.54,628.51,0.31853372]
[1771640103256,1.19348462,628.55,628.52,0.31853372]
[1771640103456,1.19348462,628.55,628.53,0.31853372]
[1771640103757,1.19348462,628.55,628.54,0.31853372]
[1771640104858,1.19348462,628.57,628.54,0.31853372]
[1771640105157,1.19348462,628.57,628.55,0.31853372]
[1771640105358,1.19348462,628.57,628.56,0.31853372]
[1771640106654,1.59062662,628.7,628.56,0.31853372]
[1771640106855,1.59062662,628.96,628.57,0.31853372]
[1771640107155,0.27684193,629.08,628.58,0.31853372]
[1771640107359,0.27684193,629.08,628.59,0.31853372]
[1771640107559,0.27684193,629.08,628.6,0.31853372]
[1771640107760,0.27684193,629.08,628.61,0.31853372]
[1771640107959,0.27684193,629.08,628.62,0.31853372]
[1771640108156,0.27684193,629.08,628.63,0.31853372]
[1771640108361,0.27684193,629.08,628.64,0.31853372]
[1771640108562,0.27684193,629.08,628.65,0.31853372]
[1771640108761,0.27684193,629.08,628.66,0.31853372]
[1771640108962,0.27684193,629.08,628.67,0.31853372]
[1771640109260,0.27684193,629.08,628.35,1.262]
[1771640109261,0.27684193,629.08,628.68,0.31853372]
[1771640109461,0.27684193,629.08,628.69,0.31853372]
[1771640109660,0.27684193,629.08,628.7,0.31853372]
[1771640109963,0.27684193,629.08,628.71,0.31853372]
[1771640110160,0.27684193,629.08,628.72,0.31853372]
[1771640110365,0.27684193,629.08,628.73,0.31853372]
[1771640110566,0.27684193,629.08,628.35,1.262]
[1771640110760,0.27684193,629.08,628.36,0.31837411]
[1771640110960,0.27684193,629.08,628.35,1.262]
[1771640110961,0.27684193,629.08,628.37,0.31837411]
[1771640111164,0.27684193,629.08,628.38,0.31837411]
[1771640111461,0.27684193,629.08,628.39,0.31837411]
[1771640111661,0.27684193,629.08,628.4,0.31837411]
[1771640111967,0.27684193,629.08,628.41,0.31837411]
[1771640112166,0.27684193,629.08,628.42,0.31837411]
[1771640112366,0.27684193,629.08,628.43,0.31837411]
[1771640112566,0.27684193,629.08,628.44,0.31837411]
[1771640112766,0.27684193,629.08,628.45,0.31837411]
[1771640112969,0.27684193,629.08,628.46,0.31837411]
[1771640113163,0.27684193,629.08,628.47,0.31837411]
[1771640113367,0.27684193,629.08,628.48,0.31837411]
[1771640113663,0.27684193,629.08,628.49,0.31837411]
[1771640113862,0.27684193,629.08,628.5,0.31837411]
[1771640114067,0.27684193,629.08,628.51,0.31837411]
[1771640114264,0.27684193,629.08,628.52,0.31837411]
[1771640114463,0.27684193,629.08,628.53,0.31837411]
[1771640114666,0.27684193,629.08,628.54,0.31837411]
[1771640114964,0.27684193,629.08,628.55,0.31837411]
[1771640115168,0.27684193,629.08,628.56,0.31837411]
[1771640115364,0.27684193,629.08,628.57,0.31837411]
[1771640115566,0.27684193,629.08,628.58,0.31837411]
[1771640115769,0.27684193,629.08,628.59,0.31837411]
[1771640115969,0.27684193,629.08,628.6,0.31837411]
[1771640116169,0.27684193,629.08,628.61,0.31837411]
[1771640116367,0.27684193,629.08,628.62,0.31837411]
[1771640116665,0.27684193,629.08,628.63,0.31837411]
[1771640116869,0.27684193,629.08,628.64,0.31837411]
[1771640117069,0.27684193,629.08,628.65,0.31837411]
[1771640117269,0.27684193,629.08,628.66,0.31837411]
[1771640117466,0.27684193,629.08,628.35,1.262]
[1771640117670,0.27684193,629.08,628.36,0.31837475]
[1771640117867,0.27684193,629.08,628.37,0.31837475]
[1771640118070,0.27684193,629.08,628.38,0.31837475]
[1771640118269,0.27684193,629.08,628.39,0.31837475]
[1771640118570,0.27684193,629.08,628.4,0.31837475]
[1771640118869,0.27684193,629.08,628.41,0.31837475]
[1771640119074,0.27684193,629.08,628.42,0.31837475]
[1771640119373,0.27684193,629.08,628.43,0.31837475]
[1771640119572,0.27684193,629.08,628.44,0.31837475]
[1771640119773,0.27684193,629.08,628.45,0.31837475]
[1771640120069,0.27684193,629.08,628.35,1.262]
[1771640120070,0.27684193,629.08,628.46,0.31837475]
[1771640120370,0.27684193,629.08,628.47,0.31837475]
[1771640120574,0.27684193,629.08,628.48,0.31837475]
[1771640120774,0.27684193,629.08,628.49,0.31840365]
[1771640121074,0.27684193,629.08,628.5,0.31840365]
[1771640121274,0.27684193,629.08,628.51,0.31840365]
[1771640121469,0.27684193,629.08,628.35,1.262]
[1771640121470,0.27684193,629.08,628.52,0.31840365]
[1771640121669,0.27684193,629.08,628.53,0.31840365]
[1771640121869,0.27684193,629.08,628.54,0.31840365]
[1771640122071,0.27684193,629.08,628.55,0.31840365]
[1771640122271,0.27684193,629.08,628.56,0.31840365]
[1771640122471,0.27684193,629.08,628.57,0.31840365]
[1771640122670,0.27684193,629.08,628.35,1.262]
[1771640122671,0.27684193,629.08,628.58,0.31840365]
[1771640122875,0.27684193,629.08,628.59,0.31840365]
[1771640123175,0.27684193,629.08,628.35,1.262]
[1771640123377,0.27684193,629.08,628.36,0.31840391]
[1771640123675,0.27684193,629.08,628.37,0.31840391]
[1771640123875,0.27684193,629.08,628.38,0.31840391]
[1771640124072,0.27684193,629.08,628.39,0.31840391]
[1771640124276,0.27684193,629.08,628.4,0.31840391]
[1771640124572,0.27684193,629.08,628.41,0.31840391]
[1771640124775,0.27684193,629.08,628.42,0.31840391]
[1771640124978,0.27684193,629.08,628.43,0.31840391]
[1771640125272,0.27684193,629.08,628.44,0.31840391]
[1771640125477,0.27684193,629.08,628.45,0.31840391]
[1771640125777,0.27684193,629.08,628.46,0.31840391]
[1771640126073,0.27684193,629.08,628.47,0.31840391]
[1771640126274,0.27684193,629.08,628.48,0.31840391]
[1771640126476,0.27684193,629.08,628.49,0.31840391]
[1771640126777,0.27684193,629.08,628.5,0.31840391]
[1771640127077,0.27684193,629.08,628.51,0.31840391]
[1771640127277,0.27684193,629.08,628.52,0.31840391]
[1771640127478,0.27684193,629.08,628.35,1.262]
[1771640127479,0.27684193,629.08,628.53,0.31840391]
[1771640127777,0.27684193,629.08,628.54,0.31840391]
[1771640127972,0.27684193,629.08,628.55,0.31840391]
[1771640128175,0.27684193,629.08,628.56,0.31840391]
[1771640128378,0.27684193,629.08,628.57,0.31840391]
[1771640128575,0.27684193,629.08,628.35,1.262]
[1771640128576,0.27684193,629.08,628.58,0.31840391]
[1771640128775,0.27684193,629.08,628.59,0.31840391]
[1771640128976,0.27684193,629.08,628.6,0.31840391]
[1771640129179,0.27684193,629.08,628.61,0.31840391]
[1771640129380,0.27684193,629.08,628.62,0.31840391]
[1771640129580,0.27684193,629.08,628.35,1.262]
[1771640129780,0.27684193,629.08,628.36,0.31840347]
[1771640129978,0.27684193,629.08,628.37,0.31840347]
[1771640130176,0.27684193,629.08,628.38,0.31840347]
[1771640130476,0.27684193,629.08,628.39,0.31840347]
[1771640130680,0.27684193,629.08,628.4,0.31840347]
[1771640130880,0.27684193,629.08,628.41,0.31840347]
[1771640131078,0.27684193,629.08,628.42,0.31840347]
[1771640131281,0.27684193,629.08,628.43,0.31840347]
[1771640131478,0.27684193,629.08,628.44,0.31840347]
[1771640131778,0.27684193,629.08,628.45,0.31840347]
[1771640131983,0.27684193,629.08,628.46,0.31840347]
[1771640132180,0.27684193,629.08,628.47,0.31840347]
[1771640132380,0.27684193,629.08,628.48,0.31840347]
[1771640132584,0.27684193,629.08,628.49,0.31840347]
[1771640132884,0.27684193,629.08,628.5,0.31840347]
[1771640133080,0.27684193,629.08,628.51,0.31840347]
[1771640133379,0.27684193,629.08,628.35,1.262]
[1771640133380,0.27684193,629.08,628.52,0.31840347]
[1771640133585,2.38657137,629.07,628.53,0.31840347]
[1771640133780,2.38657137,629.07,628.54,0.31840347]
[1771640133981,2.38657137,629.07,628.35,1.262]
[1771640134281,2.38657137,629.07,628.36,0.31844659]
[1771640134484,2.38657137,629.07,628.37,0.31844659]
[1771640134784,2.38657137,629.07,628.38,0.31844659]
[1771640134980,2.6634133,629.08,628.39,0.31844659]
[1771640135185,2.6634133,629.08,628.4,0.31844659]
[1771640135384,2.38657137,629.07,628.41,0.31844659]
[1771640135682,2.38657137,629.07,628.42,0.31844659]
[1771640135881,2.38657137,629.07,628.43,0.31844659]
[1771640136183,2.38657137,629.07,628.44,0.31844659]
[1771640136381,2.38657137,629.07,628.45,0.31844659]
[1771640136580,2.38657137,629.07,628.46,0.31844659]
[1771640136784,2.38657137,629.07,628.35,1.262]
[1771640136785,1.58385769,628.96,628.47,0.31844659]
[1771640136984,1.58385769,628.96,628.48,0.31844659]
[1771640137280,1.58385769,628.96,628.49,0.31844659]
[1771640137481,1.58385769,628.93,628.5,0.31844659]
[1771640137784,1.58385769,628.93,628.51,0.31844659]
[1771640137980,1.58385769,628.93,628.52,0.31844659]
[1771640138186,1.58385769,628.93,628.53,0.31844659]
[1771640138483,1.58385769,628.93,628.35,1.262]
[1771640138684,1.58385769,628.93,628.36,0.31845927]
[1771640138884,1.58385769,628.93,628.37,0.31845927]
[1771640139086,1.58385769,628.93,628.38,0.31845927]
[1771640139286,1.58385769,628.93,628.39,0.31845927]
[1771640139482,1.58385769,628.93,628.4,0.31845927]
[1771640139783,1.58385769,628.93,628.41,0.31845927]
[1771640139983,1.58385769,628.93,628.42,0.31845927]
[1771640140180,1.58385769,628.93,628.43,0.31845927]
[1771640140387,1.58385769,628.92,628.44,0.31845927]
[1771640140587,1.58385769,628.92,628.45,0.31845927]
[1771640140786,1.58385769,628.92,628.46,0.31845927]
[1771640141085,1.58385769,628.92,628.47,0.31845927]
[1771640141283,1.58385769,628.9,628.48,0.31845927]
[1771640141484,1.58385769,628.9,628.49,0.31845927]
[1771640141682,1.58385769,628.9,628.35,1.262]
[1771640141683,1.58385769,628.9,628.5,0.31845927]
[1771640141887,1.58385769,628.9,628.51,0.31845927]
[1771640142186,1.58385769,628.9,628.35,1.262]
[1771640142387,1.58385769,628.9,628.36,0.31847142]
[1771640142584,1.58385769,628.9,628.37,0.31847142]
[1771640142788,1.58385769,628.9,628.35,1.262]
[1771640142789,1.58385769,628.9,628.38,0.31847142]
[1771640143089,1.58385769,628.9,628.39,0.31847142]
[1771640143289,2.38657137,629.01,628.4,0.31847142]
[1771640143290,1.58385769,628.89,628.4,0.31847142]
[1771640143587,1.58385769,628.89,628.35,1.262]
[1771640143588,1.58385769,628.89,628.41,0.31847142]
[1771640143788,1.58385769,628.89,628.42,0.31847142]
[1771640143986,1.58385769,628.89,628.43,0.31847142]
[1771640144290,1.58385769,628.89,628.44,0.31847142]
[1771640144487,1.58385769,628.89,628.45,0.31847142]
[1771640144686,1.58385769,628.89,628.46,0.31847142]
[1771640144990,1.58385769,628.85,628.47,0.31847142]
[1771640145189,1.58385769,628.85,628.35,1.262]
[1771640145190,1.58385769,628.85,628.48,0.31847142]
[1771640145389,1.58385769,628.85,628.35,1.262]
[1771640145687,1.58385769,628.85,628.36,0.31847142]
[1771640145986,1.58385769,628.85,628.37,0.31847142]
[1771640146187,1.58385769,628.85,628.38,0.31847142]
[1771640146489,1.58385769,628.85,628.39,0.31847142]
[1771640146687,1.58385769,628.85,628.4,0.31847142]
[1771640146891,1.58385769,628.85,628.41,0.31847142]
[1771640147087,1.58385769,628.85,628.35,1.262]
[1771640147088,1.58385769,628.85,628.42,0.31847142]
[1771640147291,1.58385769,628.85,628.43,0.31847142]
[1771640147591,1.58385769,628.84,628.44,0.31847142]
[1771640147790,1.58385769,628.84,628.45,0.31847142]
[1771640147990,1.58385769,628.84,628.35,1.262]
[1771640147991,1.58385769,628.84,628.46,0.31847142]
[1771640148189,1.58385769,628.84,628.47,0.31847142]
[1771640148489,1.58385769,628.84,628.48,0.31847142]
[1771640148688,1.58385769,628.84,628.49,0.31847142]
[1771640148887,1.58385769,628.84,628.35,1.262]
[1771640149192,1.58385769,628.84,628.36,0.31847142]
[1771640149389,1.58385769,628.84,628.37,0.31847142]
[1771640149591,1.58385769,628.84,628.38,0.31847142]
[1771640149791,1.58385769,628.84,628.39,0.31847142]
[1771640149992,1.58385769,628.84,628.4,0.31847142]
[1771640150192,1.58385769,628.84,628.41,0.31847142]
[1771640150392,1.58385769,628.83,628.42,0.31847142]
[1771640150589,1.58385769,628.83,628.43,0.31847142]
[1771640150888,1.58385769,628.83,628.44,0.31847142]
[1771640151092,1.58385769,628.83,628.45,0.31847142]
[1771640151388,1.58385769,628.83,628.46,0.31847142]
[1771640151593,1.58385769,628.83,628.47,0.31847142]
[1771640151792,1.58385769,628.83,628.48,0.31847142]
[1771640151993,1.58385769,628.83,628.49,0.31847142]
[1771640152290,1.58385769,628.83,628.5,0.31847142]
[1771640152494,1.58385769,628.83,628.51,0.31847142]
[1771640152792,1.58385769,628.83,627.99,1.18134534]
[1771640152993,1.58385769,628.83,628.0,0.31847142]
[1771640153193,1.58385769,628.83,628.01,0.31847142]
[1771640153495,1.58385769,628.83,628.02,0.31847142]
[1771640153693,1.58385769,628.83,628.03,0.31847142]
[1771640153891,1.58385769,628.83,628.04,0.31847142]
[1771640154097,1.58385769,628.83,628.05,0.31847142]
[1771640154297,1.58385769,628.83,628.06,0.31847142]
[1771640154496,1.58385769,628.83,628.07,0.31847142]
[1771640154694,1.58385769,628.83,628.08,0.31847142]
[1771640154898,1.58385769,628.88,628.09,0.31847142]
[1771640155098,1.58385769,628.88,628.1,0.31847142]
[1771640155299,1.58385769,628.88,628.11,0.31847142]
[1771640155598,1.58385769,628.88,628.12,0.31847142]
[1771640155796,1.58385769,628.88,628.13,0.31847142]
[1771640155997,1.58385769,628.88,628.14,0.31847142]
[1771640156195,1.58385769,628.88,628.15,0.31847142]
[1771640156500,1.58385769,628.87,628.16,0.31847142]
[1771640156795,1.58385769,628.87,628.07,1.146]
[1771640156796,1.58385769,628.72,628.17,0.31847142]
[1771640157000,1.58385769,628.72,628.18,0.31847142]
[1771640157196,1.58385769,628.72,628.19,0.31847142]
[1771640157401,1.58385769,628.73,628.2,0.31847142]
[1771640157597,1.58385769,628.73,628.21,0.31847142]
[1771640157897,1.58385769,628.73,628.22,0.31847142]
[1771640158096,1.58385769,628.73,628.07,1.146]
[1771640158097,1.58385769,628.64,628.23,0.31847142]
[1771640158402,1.58385769,628.63,628.24,0.31847142]
[1771640158604,1.58385769,628.63,628.25,0.31847142]
[1771640158899,1.58385769,628.62,628.26,0.31847142]
[1771640159098,1.58385769,628.61,628.07,1.146]
[1771640159296,1.58385769,628.62,628.08,0.31861247]
[1771640159499,1.58385769,628.62,628.09,0.31861247]
[1771640159698,1.58385769,628.62,628.1,0.31861247]
[1771640159902,1.58385769,628.62,628.11,0.31861247]
[1771640160203,1.58385769,628.62,628.12,0.31861247]
[1771640160402,1.58385769,628.62,628.13,0.31861247]
[1771640160601,1.58385769,628.62,628.14,0.31861247]
[1771640160899,1.58385769,628.62,628.15,0.31861247]
[1771640161102,1.58385769,628.62,628.16,0.31861247]
[1771640161302,1.58385769,628.63,628.17,0.31861247]
[1771640161603,1.58385769,628.63,628.18,0.31861247]
[1771640161904,1.58385769,628.63,628.19,0.31861247]
[1771640162204,1.58385769,628.63,628.2,0.31861247]
[1771640162404,1.58385769,628.63,628.07,1.146]
[1771640162405,1.58385769,628.64,628.21,0.31861247]
[1771640162605,1.58385769,628.64,628.22,0.31861247]
[1771640162805,1.58385769,628.64,628.23,0.31861247]
[1771640163002,1.58385769,628.64,628.07,1.146]
[1771640163206,1.58385769,628.64,628.08,0.31861285]
[1771640163407,1.58385769,628.65,628.09,0.31861285]
[1771640163603,1.58385769,628.65,628.1,0.31861285]
[1771640163806,1.58385769,628.65,628.11,0.31861285]
[1771640164006,1.58385769,628.65,628.12,0.31861285]
[1771640164204,1.58385769,628.65,628.13,0.31861285]
[1771640164504,1.58385769,628.65,628.14,0.31861285]
[1771640164704,1.58385769,628.65,628.15,0.31861285]
[1771640164904,1.58385769,628.65,628.16,0.31861285]
[1771640165108,1.58385769,628.65,628.17,0.31861285]
[1771640165306,1.58385769,628.66,628.18,0.31861285]
[1771640165504,1.58385769,628.66,628.19,0.31861285]
[1771640165707,1.58385769,628.66,628.2,0.31861285]
[1771640165907,1.58385769,628.66,628.21,0.31861285]
[1771640166208,1.58385769,628.66,628.07,1.146]
[1771640166510,1.58385769,628.66,628.08,0.31861272]
[1771640166709,1.58385769,628.66,628.09,0.31861272]
[1771640166908,1.18680482,628.55,628.1,0.31861272]
[1771640167106,1.18680482,628.55,628.11,0.31861272]
[1771640167405,1.18680482,628.56,628.12,0.31861272]
[1771640167609,1.18680482,628.56,628.13,0.31861272]
[1771640167809,1.18680482,628.56,628.14,0.31861272]
[1771640168008,1.18680482,628.56,628.15,0.31861272]
[1771640168214,1.18680482,628.56,628.16,0.31861272]
[1771640168513,1.18680482,628.56,628.17,0.31861272]
[1771640168809,1.18680482,628.56,628.18,0.31861272]
[1771640169014,1.18680482,628.56,628.19,0.31861272]
[1771640169213,1.18680482,628.56,628.07,1.146]
[1771640169214,1.18680482,628.56,628.2,0.31861272]
[1771640169413,1.18680482,628.56,628.07,1.146]
[1771640169612,1.18680482,628.56,628.08,0.31861202]
[1771640169809,1.18680482,628.56,628.09,0.31861202]
[1771640170012,1.18680482,628.56,628.1,0.31861202]
[1771640170210,1.18680482,628.56,628.11,0.31861202]
[1771640170412,1.18680482,628.57,628.12,0.31861202]
[1771640170611,1.18680482,628.57,628.13,0.31861202]
[1771640170816,1.18680482,628.57,628.14,0.31861202]
[1771640171111,1.18680482,628.57,628.15,0.31861202]
[1771640171310,1.18680482,628.57,628.16,0.31861202]
[1771640171514,1.18680482,628.57,628.17,0.31861202]
[1771640171714,1.18680482,628.57,628.18,0.31861202]
[1771640172014,1.18680482,628.57,628.19,0.31861202]
[1771640172214,1.18680482,628.57,628.2,0.31861202]
[1771640172412,1.18680482,628.57,628.07,1.146]
[1771640172615,1.18680482,628.57,628.08,0.31861202]
[1771640172816,1.18680482,628.57,628.09,0.31861202]
[1771640173011,1.18680482,628.57,628.1,0.31861202]
[1771640173214,1.18680482,628.57,628.11,0.31861202]
[1771640173513,1.18680482,628.57,628.12,0.31861202]
[1771640173711,1.18680482,628.57,628.07,1.146]
[1771640173712,1.18680482,628.57,628.13,0.31861202]
[1771640173915,1.18680482,628.57,628.14,0.31861202]
[1771640174114,1.18680482,628.57,628.15,0.31861202]
[1771640174315,1.18680482,628.57,628.16,0.31861202]
[1771640174518,1.18680482,628.57,628.17,0.31861202]
[1771640174817,1.18680482,628.57,628.18,0.31861202]
[1771640175018,1.18680482,628.55,628.07,1.146]
[1771640175218,1.18680482,628.55,628.08,0.31861202]
[1771640175517,1.18680482,628.55,628.09,0.31861202]
[1771640175718,1.18680482,628.55,628.1,0.31861202]
[1771640175914,1.18680482,628.55,628.11,0.31861202]
[1771640176118,1.18680482,628.55,628.12,0.31861202]
[1771640176320,1.18680482,628.55,628.13,0.31861202]
[1771640176517,1.18680482,628.55,628.14,0.31861202]
[1771640176718,1.18630123,628.55,628.15,0.31861202]
[1771640176918,1.18630123,628.55,628.16,0.31861202]
[1771640177114,1.18630123,628.55,628.17,0.31861202]
[1771640177319,1.18630123,628.54,628.18,0.31861202]
[1771640177519,1.18630123,628.54,628.19,0.31861202]
[1771640177720,1.18630123,628.54,628.07,1.146]
[1771640177920,1.18630123,628.54,628.08,0.31861202]
[1771640178116,1.18630123,628.54,628.09,0.31861202]
[1771640178321,1.18630123,628.54,628.1,0.31861202]
[1771640178616,1.18630123,628.54,628.11,0.31861202]
[1771640178919,1.18630123,628.54,628.12,0.31861202]
[1771640179118,1.18630123,628.54,628.13,0.31861202]
[1771640179325,1.18630123,628.54,628.14,0.31861202]
[1771640179524,1.18630123,628.54,628.15,0.31861202]
[1771640179728,1.18630123,628.54,628.16,0.31861202]
[1771640179926,1.18630123,628.54,628.17,0.31861202]
[1771640180226,1.18630123,628.54,628.18,0.31861202]
[1771640180424,1.18630123,628.54,628.19,0.31861202]
[1771640180622,1.18630123,628.54,628.2,0.31861202]
[1771640180821,1.18630123,628.54,628.07,1.146]
[1771640181025,1.18630123,628.54,628.08,0.31861195]
[1771640181228,1.18630123,628.54,628.09,0.31861195]
[1771640181523,1.18630123,628.54,628.1,0.31861195]
[1771640181724,1.18630123,628.54,628.11,0.31861195]
[1771640181926,1.18630123,628.54,628.12,0.31861195]
[1771640182128,1.18630123,628.54,628.07,1.146]
[1771640182129,1.18630123,628.54,628.13,0.31861195]
[1771640182325,1.18630123,628.54,628.14,0.31861195]
[1771640182625,1.18630123,628.54,628.15,0.31861195]
[1771640182826,1.18630123,628.54,628.16,0.31861195]
[1771640183029,1.18630123,628.54,628.17,0.31861195]
[1771640183326,1.18630123,628.53,628.18,0.31861195]
[1771640183526,1.18630123,628.53,628.19,0.31861195]
[1771640183726,1.18630123,628.53,628.2,0.31861195]
[1771640183926,1.18630123,628.53,628.21,0.31861195]
[1771640184128,1.18630123,628.53,628.07,1.146]
[1771640184331,1.18630123,628.53,628.08,0.31861227]
[1771640184631,1.18630123,628.53,628.09,0.31861227]
[1771640184830,1.18630123,628.53,628.1,0.31861227]
[1771640185028,1.18630123,628.55,628.11,0.31861227]
[1771640185232,1.18630123,628.55,628.12,0.31861227]
[1771640185428,1.18630123,628.54,628.13,0.31861227]
[1771640185629,1.18630123,628.54,628.14,0.31861227]
[1771640185832,1.18630123,628.54,628.15,0.31861227]
[1771640186133,1.18630123,628.54,628.16,0.31861227]
[1771640186328,1.18630123,628.54,628.17,0.31861227]
[1771640186532,1.18630123,628.54,628.18,0.31861227]
[1771640186733,1.18630123,628.54,628.19,0.31861227]
[1771640186929,1.18630123,628.54,628.2,0.31861227]
[1771640187133,1.18630123,628.54,628.21,0.31861227]
[1771640187430,1.18630123,628.54,628.22,0.31861227]
[1771640187630,1.18630123,628.54,628.23,0.31861227]
[1771640187833,1.18630123,628.54,628.07,1.146]
[1771640188034,1.18630123,628.54,628.08,0.31861212]
[1771640188234,1.18630123,628.54,628.09,0.31861212]
[1771640188433,1.18630123,628.54,628.1,0.31861212]
[1771640188630,1.18630123,628.54,628.11,0.31861212]
[1771640188833,1.18630123,628.54,628.12,0.31861212]
[1771640189129,1.18630123,628.54,628.13,0.31861212]
[1771640189339,1.18630123,628.53,628.14,0.31861212]
[1771640189532,1.18630123,628.53,628.15,0.31861212]
[1771640189830,1.18630123,628.53,628.16,0.31861212]
[1771640190030,1.18630123,628.53,628.17,0.31861212]
[1771640190230,1.18630123,628.53,628.18,0.31861212]
[1771640190530,1.18630123,628.53,628.19,0.31861212]
[1771640190730,0.27684193,629.08,628.2,0.31861212]
[1771640190731,1.18630123,628.54,628.2,0.31861212]
[1771640190931,1.18630123,628.54,628.21,0.31861212]
[1771640191131,1.18630123,628.54,628.22,0.31861212]
[1771640191331,1.18630123,628.53,628.23,0.31861212]
[1771640191535,1.18630123,628.53,628.24,0.31861212]
[1771640191734,1.18630123,628.53,628.25,0.31861212]
[1771640191935,1.18630123,628.53,628.07,1.146]
[1771640192135,1.18630123,628.53,628.08,0.31860754]
[1771640192331,1.18630123,628.53,628.09,0.31860754]
[1771640192535,1.18630123,628.53,628.1,0.31860754]
[1771640192731,1.18630123,628.53,628.11,0.31860754]
[1771640192932,1.18630123,628.53,628.12,0.31860754]
[1771640193132,1.18630123,628.53,628.13,0.31860754]
[1771640193431,1.18630123,628.52,628.14,0.31860754]
[1771640193633,1.18630123,628.52,628.15,0.31860754]
[1771640193835,1.18630123,628.52,628.16,0.31860754]
[1771640194037,1.18630123,628.52,628.17,0.31860754]
[1771640194333,1.18630123,628.51,628.18,0.31860754]
[1771640194536,1.18630123,628.51,628.19,0.31860754]
[1771640194731,1.18630123,628.51,628.2,0.31860754]
[1771640194935,1.18630123,628.48,628.21,0.31860754]
[1771640195135,1.18630123,628.48,628.22,0.31860754]
[1771640195332,1.18630123,628.47,628.23,0.31860754]
[1771640195631,1.18630123,628.47,628.24,0.31860754]
[1771640195835,1.18630123,628.47,627.7,1.17774833]
[1771640196037,1.18630123,628.47,627.71,0.31860703]
[1771640196233,1.18630123,628.46,627.72,0.31860703]
[1771640196432,1.18630123,628.46,627.73,0.31860703]
[1771640196632,1.18630123,628.46,627.74,0.31860703]
[1771640196834,1.18630123,628.46,627.75,0.31860703]
[1771640197032,1.18630123,628.46,627.76,0.31860703]
[1771640197231,1.18630123,628.46,627.77,0.31860703]
[1771640197536,1.18630123,628.45,627.78,0.31860703]
[1771640197733,1.18630123,628.45,627.79,0.31860703]
[1771640197934,1.18630123,628.45,627.8,0.31860703]
[1771640198137,1.18630123,628.45,627.81,0.31860703]
[1771640198335,1.18630123,628.44,627.82,0.31860703]
[1771640198535,1.18630123,628.44,627.83,0.31860703]
[1771640198739,1.18630123,628.44,627.84,0.31860703]
[1771640198935,1.18630123,628.44,627.85,0.31860703]
[1771640199139,1.18630123,628.44,627.86,0.31860703]
[1771640199344,1.18630123,628.43,627.87,0.31860703]
[1771640199638,1.18630123,628.43,627.88,0.31860703]
[1771640199837,1.18630123,628.43,627.89,0.31860703]
[1771640200037,1.18630123,628.43,627.9,0.31860703]
[1771640200237,1.18630123,628.43,627.91,0.31860703]
[1771640200441,1.18630123,628.41,627.92,0.31860703]
[1771640200736,1.18630123,628.41,627.93,0.31860703]